fUST/lending_fUST_20240223
["ID","MTS","AMOUNT","RATE_DAILY","PERIOD"]
[314929681,1708679440694,-166.666666,0.00019178,2]
[314929682,1708679440704,-156.99247221,0.00019215,2]
[314929683,1708679440713,-500.0,0.00019351,2]
[314929684,1708679440722,-151.0,0.00019352,2]
[314929685,1708679440732,-156.99247221,0.00019352,2]
[314929686,1708679440741,-6586.18476742,0.00019352,2]
[314929687,1708679440750,-500.0,0.00019451,2]
[314929688,1708679440759,-500.0,0.00019451,2]
[314929689,1708679440768,-500.0,0.00019451,2]
[314929690,1708679440777,-500.0,0.00019451,2]
[314929691,1708679440786,-394.20832876,0.00019451,2]
[314929692,1708679440796,-500.0,0.00019451,2]
[314929693,1708679440805,-500.0,0.00019451,2]
[314929694,1708679440814,-500.0,0.00019452,2]
[314929695,1708679440823,-500.0,0.00019452,2]
[314929696,1708679440832,-601.9,0.00019452,2]
[314929697,1708679440841,-506.86,0.00019452,2]
[314929698,1708679440851,-500.0,0.00019452,2]
[314929699,1708679440863,-500.0,0.00019452,2]
[314929700,1708679440873,-1254.21,0.00019452,2]
[314929701,1708679440886,-1776.85325616,0.00019452,2]
[314929702,1708679440909,-319.72674384,0.00019452,2]
[314929703,1708679440919,-327.24188839,0.00019452,2]
[314929704,1708679441431,-524.93713581,0.00018849,2]
[314929705,1708679441441,-2303.34,0.00019178,2]
[314929706,1708679441450,-199.14811161,0.00019452,2]
[314929707,1708679441460,-500.0,0.00019452,2]
[314929708,1708679441470,-536.47,0.00019452,2]
[314929709,1708679441479,-500.0,0.00019452,2]
[314929710,1708679441488,-709.98,0.00019452,2]
[314929711,1708679441498,-151.0,0.00019452,2]
[314929712,1708679441507,-151.0,0.00019452,2]
[314929713,1708679441516,-151.0,0.00019452,2]
[314929714,1708679441525,-155.089036,0.00019452,2]
[314929715,1708679441535,-500.0,0.00019452,2]
[314929716,1708679441544,-500.0,0.00019452,2]
[314929717,1708679441553,-501.05568554,0.00019452,2]
[314929718,1708679441562,-1792.33,0.00019452,2]
[314929719,1708679441571,-532.14463366,0.00019452,2]
[314929720,1708679441580,-480.10539738,0.00019452,2]
[314929732,1708679444628,-381.62460262,0.00019452,2]
[314929734,1708679444638,-500.0,0.00019452,2]
[314929736,1708679444647,-498.59559338,0.00019452,2]
[314929737,1708679444658,-1388.82440662,0.00019452,2]
[314929738,1708679444668,-500.0,0.00019452,2]
[314929739,1708679444677,-1659.55,0.00019452,2]
[314929740,1708679444686,-927.81,0.00019452,2]
[314929741,1708679444697,-1253.79,0.00019452,2]
[314929742,1708679444706,-500.0,0.00019452,2]
[314929743,1708679444715,-598.65658508,0.00019452,2]
[314929744,1708679444725,-151.137807,0.00019452,2]
[314929745,1708679444734,-500.0,0.00019452,2]
[314929746,1708679444743,-500.0,0.00019452,2]
[314929747,1708679444753,-500.0,0.00019452,2]
[314929749,1708679444763,-500.0,0.00019452,2]
[314929752,1708679444873,-289.51818628,0.00019452,2]
[314929753,1708679444885,-272.45,0.00019452,2]
[314929754,1708679444894,-500.0,0.00019452,2]
[314929755,1708679444904,-1409.86,0.00019452,2]
[314929756,1708679444914,-500.76477568,0.00019452,2]
[314929757,1708679444923,-14298.22,0.00019452,2]
[314929758,1708679444934,-1837.54,0.00019452,2]
[314929759,1708679444943,-500.0,0.00019452,2]
[314929760,1708679444953,-1032.53,0.00019452,2]
[314929761,1708679444962,-500.0,0.00019452,2]
[314929762,1708679444972,-473.86253275,0.00019452,2]
[314929763,1708679444981,-500.0,0.00019452,2]
[314929764,1708679444990,-500.0,0.00019452,2]
[314929765,1708679445000,-500.0,0.00019452,2]
[314929766,1708679445010,-500.0,0.00019452,2]
[314929767,1708679445019,-15702.06,0.00019452,2]
[314929768,1708679445028,-501.62713327,0.00019452,2]
[314929769,1708679445038,-1890.11,0.00019452,2]
[314929770,1708679445048,-500.0,0.00019452,2]
[314929771,1708679445057,-2097.2,0.00019452,2]
[314929772,1708679445067,-1033.84,0.00019452,2]
[314929773,1708679445077,-2910.16,0.00019452,2]
[314929774,1708679445087,-1056.3,0.00019452,2]
[314929775,1708679445097,-500.0,0.00019452,2]
[314929776,1708679445106,-502.00220779,0.00019452,2]
[314929777,1708679445116,-620.17,0.00019452,2]
[314929778,1708679445126,-367.62,0.00019452,2]
[314929779,1708679445135,-1207.28,0.00019452,2]
[314929780,1708679445145,-456.80215265,0.00019452,2]
[314929781,1708679445155,-805.54,0.00019452,2]
[314929782,1708679445165,-501.11579154,0.00019452,2]
[314929783,1708679445175,-1221.66,0.00019452,2]
[314929784,1708679445185,-500.0,0.00019452,2]
[314929785,1708679445196,-500.0,0.00019452,2]
[314929786,1708679445206,-7890.36,0.00019452,2]
[314929787,1708679445217,-4243.17,0.00019452,2]
[314929788,1708679445227,-1412.69,0.00019452,2]
[314929789,1708679445237,-500.0,0.00019452,2]
[314929790,1708679445247,-500.0,0.00019452,2]
[314929791,1708679445258,-6786.06,0.00019452,2]
[314929792,1708679445268,-2303.34,0.00019452,2]
[314929793,1708679445277,-11923.06509357,0.00019477,2]
[314929794,1708679445287,-708.67765596,0.00019485,2]
[314929795,1708679445298,-708.67765596,0.0001949,2]
[314929796,1708679445307,-708.67765596,0.00019491,2]
[314929797,1708679445317,-3365.38957334,0.00019497,2]
[314929817,1708679613249,-155.08374522,0.000191,2]
[314929818,1708679613270,-344.91625478,0.00019174,2]
[314929819,1708679843256,9441.0,0.00019,120]
[314929837,1708680030805,850.6878669,0.00017885,2]
[314929838,1708680274029,3514.7564826,0.00017934,2]
[314929839,1708680360611,151.62887317,0.00017844,2]
[314929842,1708680628488,-795.0,0.00018102,2]
[314929892,1708680639558,-1066.92142109,0.00018102,2]
[314929894,1708680639567,-524.93713581,0.00018103,2]
[314929896,1708680639577,-289.94707559,0.00018106,2]
[314929898,1708680639586,-289.0,0.0001811,2]
[314929900,1708680639595,-3760.65410479,0.00018111,2]
[314929902,1708680639606,-9170.95975421,0.00018111,2]
[314929904,1708680639615,-8227.31028119,0.0001899,2]
[314929906,1708680639624,-174.94361602,0.00019,2]
[314929908,1708680639633,-200.05466556,0.000191,2]
[314929910,1708680639642,-925.68716291,0.00019176,2]
[314929912,1708680639650,-155.76830096,0.00019177,2]
[314929914,1708680639660,-500.0,0.00019178,2]
[314929916,1708680639669,-500.0,0.00019178,2]
[314929918,1708680639678,-500.0,0.00019178,2]
[314929920,1708680639687,-500.0,0.00019178,2]
[314929922,1708680639697,-500.0,0.00019178,2]
[314929924,1708680639706,-500.58098738,0.00019178,2]
[314929926,1708680639714,-501.56110135,0.00019178,2]
[314929928,1708680639724,-500.0,0.00019178,2]
[314929930,1708680639733,-500.75730994,0.00019178,2]
[314929932,1708680639744,-500.55007898,0.00019178,2]
[314929934,1708680639753,-501.30524498,0.00019178,2]
[314929936,1708680639762,-571.0,0.00019178,2]
[314929938,1708680639771,-500.0,0.00019178,2]
[314929940,1708680639779,-319.52149652,0.00019178,2]
[314929941,1708680639810,-181.05107632,0.00019178,2]
[314929942,1708680639819,-388.57809948,0.00019178,2]
[314929960,1708680643595,-111.42190052,0.00019178,2]
[314929961,1708680643604,-138.84017254,0.00019178,2]
[314929962,1708680644541,-361.97708333,0.00019178,2]
[314929963,1708680644551,-501.07745012,0.00019178,2]
[314929964,1708680644560,-538.23932165,0.00019178,2]
[314929965,1708680644570,-500.0,0.00019178,2]
[314929966,1708680644579,-1875.85089491,0.00019178,2]
[314929997,1708680647569,-428.02910509,0.00019178,2]
[314929998,1708680647578,-500.76231517,0.00019178,2]
[314929999,1708680647587,-500.64368728,0.00019178,2]
[314930000,1708680647597,-628.56,0.00019178,2]
[314930001,1708680647606,-510.11588067,0.00019178,2]
[314930002,1708680647614,-500.0,0.00019178,2]
[314930003,1708680647624,-500.0,0.00019178,2]
[314930005,1708680647633,-500.0,0.00019178,2]
[314930007,1708680647641,-715.75,0.00019178,2]
[314930008,1708680647650,-501.47156122,0.00019178,2]
[314930010,1708680647659,-500.0,0.00019178,2]
[314930011,1708680647669,-500.0,0.00019178,2]
[314930012,1708680647678,-500.0,0.00019178,2]
[314930013,1708680647687,-500.0,0.00019178,2]
[314930014,1708680647696,-500.0,0.00019178,2]
[314930015,1708680647705,-500.0,0.00019178,2]
[314930016,1708680647714,-279.13169312,0.00019178,2]
[314930017,1708680647731,-220.86830688,0.00019178,2]
[314930018,1708680647741,-1347.8,0.00019178,2]
[314930019,1708680647750,-500.0,0.00019178,2]
[314930020,1708680647759,-500.0,0.00019178,2]
[314930021,1708680647768,-510.91,0.00019178,2]
[314930022,1708680647777,-274.35022681,0.00019178,2]
[314930023,1708680647789,-225.64977319,0.00019178,2]
[314930024,1708680647799,-151.0,0.00019178,2]
[314930025,1708680647808,-280.00786919,0.00019178,2]
[314930067,1708681832668,-524.93713581,0.00018196,2]
[314930069,1708681832679,-4824.76604465,0.00018196,2]
[314930070,1708681832689,-583.352073,0.00018197,2]
[314930071,1708681832698,-503.04951605,0.000189,2]
[314930072,1708681832707,-8227.31028119,0.0001899,2]
[314930073,1708681832717,-174.94361601,0.00019078,2]
[314930074,1708681832727,-164.85964211,0.00019178,2]
[314930075,1708681832736,-500.0,0.00019178,2]
[314930076,1708681832745,-500.0,0.00019178,2]
[314930078,1708681832755,-219.99213081,0.00019178,2]
[314930080,1708681832765,-882.4,0.00019178,2]
[314930081,1708681832774,-500.0,0.00019178,2]
[314930083,1708681832784,-500.0,0.00019178,2]
[314930085,1708681832793,-500.0,0.00019178,2]
[314930087,1708681832801,-512.68,0.00019178,2]
[314930089,1708681832810,-500.0,0.00019178,2]
[314930091,1708681832820,-500.0,0.00019178,2]
[314930093,1708681832828,-1291.64,0.00019178,2]
[314930094,1708681832837,-228.67540805,0.00019178,2]
[314930096,1708681832847,-500.0,0.00019178,2]
[314930099,1708681832858,-500.0,0.00019178,2]
[314930100,1708681832868,-500.0,0.00019178,2]
[314930102,1708681832879,-603.76238966,0.00019178,2]
[314930104,1708681832889,-437.92881831,0.00019178,2]
[314930107,1708681832899,-500.0,0.00019178,2]
[314930108,1708681832909,-576.85,0.00019178,2]
[314930110,1708681832919,-500.0,0.00019178,2]
[314930112,1708681832930,-1000.0,0.00019178,2]
[314930114,1708681832940,-500.0,0.00019178,2]
[314930116,1708681832949,-500.0,0.00019178,2]
[314930118,1708681832959,-500.0,0.00019178,2]
[314930120,1708681832969,-500.0,0.00019178,2]
[314930122,1708681832978,-500.0,0.00019178,2]
[314930124,1708681832987,-500.0,0.00019178,2]
[314930126,1708681832996,-500.0,0.00019178,2]
[314930128,1708681833005,-500.0,0.00019178,2]
[314930130,1708681833014,-500.79231657,0.00019178,2]
[314930132,1708681833023,-500.0,0.00019178,2]
[314930134,1708681833033,-369.21845984,0.00019178,2]
[314930136,1708681833042,-500.0,0.00019178,2]
[314930138,1708681833051,-501.03382688,0.00019178,2]
[314930140,1708681833060,-500.57580498,0.00019178,2]
[314930141,1708681833069,-500.0,0.00019178,2]
[314930142,1708681833078,-501.98835808,0.00019178,2]
[314930143,1708681833087,-500.0,0.00019178,2]
[314930144,1708681833096,-600.6800655,0.00019178,2]
[314930145,1708681833106,-500.0,0.00019178,2]
[314930146,1708681833115,-500.61270406,0.00019178,2]
[314930147,1708681833124,-500.0,0.00019178,2]
[314930148,1708681833133,-501.80150892,0.00019178,2]
[314930149,1708681833142,-500.0,0.00019178,2]
[314930150,1708681833152,-500.62731686,0.00019178,2]
[314930151,1708681833162,-281.20782423,0.00019178,2]
[314930152,1708681833171,-501.27008884,0.00019178,2]
[314930153,1708681833181,-500.0,0.00019178,2]
[314930154,1708681833190,-510.93419124,0.00019178,2]
[314930155,1708681833200,-501.73071972,0.00019178,2]
[314930156,1708681833209,-500.0,0.00019178,2]
[314930157,1708681833219,-500.0,0.00019178,2]
[314930158,1708681833228,-462.6260708,0.00019178,2]
[314930159,1708681833237,-500.36484245,0.00019178,2]
[314930160,1708681833246,-500.0,0.00019178,2]
[314930161,1708681833256,-500.0,0.00019178,2]
[314930162,1708681833266,-500.0,0.00019178,2]
[314930163,1708681833275,-500.64164528,0.00019178,2]
[314930164,1708681833287,-500.0,0.00019178,2]
[314930165,1708681833296,-500.0,0.00019178,2]
[314930166,1708681833306,-605.93,0.00019178,2]
[314930167,1708681833315,-500.51096208,0.00019178,2]
[314930168,1708681833324,-510.27943543,0.00019178,2]
[314930169,1708681833333,-500.42471749,0.00019178,2]
[314930170,1708681833343,-322.3004269,0.00019178,2]
[314930171,1708681833353,-500.0,0.00019178,2]
[314930172,1708681833362,-2207.89,0.00019178,2]
[314930173,1708681833371,-500.0,0.00019178,2]
[314930174,1708681833380,-500.0,0.00019178,2]
[314930175,1708681833390,-303.08051406,0.00019178,2]
[314930176,1708681833399,-1642.97,0.00019178,2]
[314930177,1708681833408,-789.92,0.00019178,2]
[314930178,1708681833417,-2213.45,0.00019178,2]
[314930179,1708681833427,-500.0,0.00019178,2]
[314930180,1708681833436,-1294.97,0.00019178,2]
[314930181,1708681833446,-1730.14,0.00019178,2]
[314930182,1708681833457,-149.42893748,0.00019178,2]
[314930183,1708681833470,-463.7665836,0.00019178,2]
[314930208,1708681840613,-210.51744093,0.00019078,2]
[314930209,1708681840623,-500.0,0.00019178,2]
[314930210,1708681840635,-500.0,0.00019178,2]
[314930211,1708681840644,-1940.9319553,0.00019178,2]
[314930212,1708681840656,-4511.1380447,0.00019178,2]
[314930213,1708681840666,-500.0,0.00019178,2]
[314930214,1708681840676,-899.93649703,0.00019178,2]
[314930215,1708681840688,-177.61350297,0.00019178,2]
[314930216,1708681840697,-919.47649703,0.00019178,2]
[314930217,1708681840710,-229.83350297,0.00019178,2]
[314930218,1708681840719,-500.0,0.00019178,2]
[314930219,1708681840728,-500.0,0.00019178,2]
[314930220,1708681840737,-500.0,0.00019178,2]
[314930221,1708681840746,-500.0,0.00019178,2]
[314930222,1708681840757,-1030.76,0.00019178,2]
[314930223,1708681840766,-782.95700322,0.00019178,2]
[314930224,1708681840779,-509.41299678,0.00019178,2]
[314930225,1708681840789,-500.0,0.00019178,2]
[314930226,1708681840798,-1732.6,0.00019178,2]
[314930227,1708681840809,-3063.54190011,0.00019178,2]
[314930228,1708681840823,-9778.33582786,0.00019178,2]
[314930229,1708681840836,-797.88128942,0.00019178,2]
[314930251,1708681843671,-264.89267456,0.00019178,2]
[314930252,1708681843683,-488.90830805,0.00019178,2]
[314930253,1708681843692,-292.29639949,0.00019178,2]
[314930256,1708681843804,-709.07133419,0.00019178,2]
[314930288,1708681846681,-3845.37356102,0.00019178,2]
[314930688,1708682006407,1500.26855934,0.00021088,14]
[314930728,1708683037890,-4249.38420413,0.00018009,2]
[314930729,1708683037902,-575.38184052,0.00018009,2]
[314930730,1708683037914,-2018.45005,0.0001801,2]
[314930731,1708683037923,-183.171319,0.00018037,2]
[314930732,1708683037933,-520.60950135,0.000189,2]
[314930733,1708683037943,-200.05896596,0.0001898,2]
[314930734,1708683037953,-8227.31028119,0.0001899,2]
[314930735,1708683037963,-2691.4098833,0.00019,2]
[314930736,1708683037972,-500.0,0.00019178,2]
[314930737,1708683037982,-500.0,0.00019178,2]
[314930738,1708683037992,-500.0,0.00019178,2]
[314930739,1708683038003,-501.49146928,0.00019178,2]
[314930740,1708683038012,-584.19,0.00019178,2]
[314930741,1708683038021,-500.0,0.00019178,2]
[314930742,1708683038030,-500.0,0.00019178,2]
[314930743,1708683038040,-500.0,0.00019178,2]
[314930744,1708683038049,-500.0,0.00019178,2]
[314930745,1708683038058,-514.18210113,0.00019178,2]
[314930746,1708683038067,-501.33235882,0.00019178,2]
[314930747,1708683038076,-580.69,0.00019178,2]
[314930748,1708683038087,-500.0,0.00019178,2]
[314930749,1708683038097,-1273.23,0.00019178,2]
[314930750,1708683038106,-552.82,0.00019178,2]
[314930751,1708683038115,-500.0,0.00019178,2]
[314930752,1708683038124,-2115.89,0.00019178,2]
[314930753,1708683038133,-500.20045604,0.00019178,2]
[314930754,1708683038141,-1002.09036569,0.00019178,2]
[314930755,1708683038150,-500.0,0.00019178,2]
[314930756,1708683038159,-500.0,0.00019178,2]
[314930757,1708683038168,-500.0,0.00019178,2]
[314930758,1708683038178,-500.0,0.00019178,2]
[314930759,1708683038187,-743.08,0.00019178,2]
[314930760,1708683038196,-97.38807255,0.00019178,2]
[314930761,1708683038208,-402.61192745,0.00019178,2]
[314930762,1708683038217,-500.0,0.00019178,2]
[314930763,1708683038227,-500.0,0.00019178,2]
[314930764,1708683038236,-500.0,0.00019178,2]
[314930765,1708683038245,-170.70450104,0.00019178,2]
[314930766,1708683038255,-190.84,0.00019178,2]
[314930767,1708683038264,-476.93748457,0.00019178,2]
[314930768,1708683038276,-23.06251543,0.00019178,2]
[314930769,1708683038285,-500.0,0.00019178,2]
[314930770,1708683038294,-500.0,0.00019178,2]
[314930771,1708683038303,-554.66,0.00019178,2]
[314930772,1708683038312,-543.16357151,0.00019178,2]
[314930818,1708683040962,-1031.34642849,0.00019178,2]
[314930819,1708683040971,-500.0,0.00019178,2]
[314930820,1708683040981,-757.01,0.00019178,2]
[314930821,1708683040991,-1715.91,0.00019178,2]
[314930822,1708683041001,-843.30572933,0.00019178,2]
[314930823,1708683041014,-6718.29427067,0.00019178,2]
[314930824,1708683041022,-500.0,0.00019178,2]
[314930825,1708683041031,-480.91866427,0.00019178,2]
[314930826,1708683041047,-3915.64133573,0.00019178,2]
[314930827,1708683041057,-4323.89224379,0.00019178,2]
[314930828,1708683041068,-2142.08775621,0.00019178,2]
[314930829,1708683041078,-272.45,0.00019178,2]
[314930830,1708683041092,-2217.19,0.00019178,2]
[314930831,1708683041102,-500.0,0.00019178,2]
[314930832,1708683041112,-1545.5,0.00019178,2]
[314930833,1708683041122,-500.0,0.00019178,2]
[314930834,1708683041131,-1030.84,0.00019178,2]
[314930835,1708683041141,-11.64022048,0.00019178,2]
[314930836,1708683041152,-386.06937571,0.00019178,2]
[314930844,1708683042820,-486.58040381,0.00019178,2]
[314930846,1708683042830,-32.02959619,0.00019178,2]
[314930848,1708683042842,-1121.63040381,0.00019178,2]
[314930850,1708683042851,-500.0,0.00019178,2]
[314930852,1708683042860,-500.0,0.00019178,2]
[314930854,1708683042869,-309.04009628,0.00019178,2]
[314930859,1708683042908,-190.95990372,0.00019178,2]
[314930861,1708683042918,-500.0,0.00019178,2]
[314930863,1708683042928,-1297.27,0.00019178,2]
[314930865,1708683042937,-65.09219228,0.00019178,2]
[314930923,1708683138406,-500.0,0.00021917,30]
[314930924,1708683138433,-220.48619991,0.00021917,30]
[314930925,1708683178677,-1000.0,0.00022,22]
[314930926,1708683197988,-1000.0,0.00023,23]
[314930927,1708683218784,-1000.0,0.00024,24]
[314930928,1708683226169,-1000.0,0.00025,25]
[314930929,1708683232354,-1000.0,0.00026,26]
[314930930,1708683282380,-1049.0,0.00028,30]
[314930931,1708683378628,-161.724447,0.00030959,120]
[314930932,1708683789138,230.87450035,0.00014999,2]
[314930933,1708683809283,230.87450035,0.00014999,2]
[314930934,1708683833270,230.87450035,0.00014999,2]
[314930935,1708683853283,317.44055978,0.00014999,2]
[314930937,1708684019378,183.171319,0.00017893,2]
[314930938,1708684079052,3032.9030147,0.00017764,2]
[314930996,1708684232067,-1727.40033816,0.00018021,2]
[314931110,1708684243867,-3071.70206967,0.0001802,2]
[314931131,1708684617970,1186.2614269,0.00017872,2]
[314931183,1708685432257,-2545.25,0.00018018,2]
[314931470,1708685441546,-0.188017,0.00018018,2]
[314931472,1708685441558,-170.36338285,0.00018018,2]
[314931474,1708685441567,-1448.31818436,0.00018019,2]
[314931476,1708685441577,-524.93713581,0.00018026,2]
[314931478,1708685441587,-154.87609912,0.00018027,2]
[314931480,1708685441595,-1010.95183881,0.000189,2]
[314931482,1708685441604,-210.51744095,0.00019078,2]
[314931484,1708685441613,-1364.48950569,0.00019177,2]
[314931689,1708685452684,28832.32056396,0.00018018,7]
[314931701,1708686202537,3243.47966198,0.00021088,14]
[314931736,1708686632484,-925.14724778,0.00018187,2]
[314931776,1708686639247,-808.93443581,0.00018187,2]
[314931869,1708686642072,-1921.79639871,0.00018187,2]
[314931870,1708686642082,-365.906717,0.00018219,2]
[314931871,1708686642091,-1066.56695205,0.00018259,2]
[314931900,1708686643534,-7317.76516544,0.00018259,2]
[314931903,1708686643591,-10455.37788251,0.00018259,2]
[314931904,1708686643601,-799.21040472,0.000189,2]
[314931905,1708686643610,-194.05652052,0.00019078,2]
[314931906,1708686643619,-4613.91157724,0.00019177,2]
[314931931,1708686646488,-2248.90919826,0.00019177,2]
[314931933,1708686646497,-219.25943045,0.00019178,2]
[314931934,1708686646507,-500.0,0.00019178,2]
[314931935,1708686646516,-500.0,0.00019178,2]
[314931936,1708686646526,-500.0,0.00019178,2]
[314931937,1708686646536,-500.0,0.00019178,2]
[314931939,1708686646545,-500.0,0.00019178,2]
[314931940,1708686646554,-556.49,0.00019178,2]
[314931942,1708686646564,-1220.18,0.00019178,2]
[314931944,1708686646573,-388.57809948,0.00019178,2]
[314931945,1708686646582,-529.78,0.00019178,2]
[314931946,1708686646592,-500.0,0.00019178,2]
[314931947,1708686646601,-181.05107632,0.00019178,2]
[314931948,1708686646610,-2027.73,0.00019178,2]
[314931949,1708686646620,-500.0,0.00019178,2]
[314931950,1708686646629,-712.12,0.00019178,2]
[314931951,1708686646638,-500.0,0.00019178,2]
[314931952,1708686646647,-500.0,0.00019178,2]
[314931953,1708686646656,-216.87,0.00019178,2]
[314931954,1708686646665,-500.0,0.00019178,2]
[314931955,1708686646675,-1508.91,0.00019178,2]
[314931956,1708686646685,-725.46,0.00019178,2]
[314931957,1708686646694,-1378.45,0.00019178,2]
[314931958,1708686646703,-4213.37,0.00019178,2]
[314931959,1708686646714,-500.0,0.00019178,2]
[314931960,1708686646724,-1644.42,0.00019178,2]
[314931961,1708686646735,-501.26154078,0.00019178,2]
[314931962,1708686646745,-2602.0627617,0.00019178,2]
[314932358,1708687838622,-4267.2141377,0.00018056,2]
[314932360,1708687838632,-182.953358,0.00018168,2]
[314932362,1708687838641,-639.16123449,0.00018255,2]
[314932364,1708687838651,-602.95764646,0.000189,2]
[314932366,1708687838660,-1200.05922766,0.00019078,2]
[314932649,1708687841863,-872.67904065,0.00019078,2]
[314932651,1708687841875,-1333.67007164,0.00019078,2]
[314932840,1708687843783,-1025.4,0.00019078,2]
[314932842,1708687843795,-9794.11432463,0.00019078,2]
[314932845,1708687843807,-293.26520376,0.00019078,2]
[314932849,1708687843845,-5176.90325987,0.00019078,2]
[314933135,1708687846705,-2613.41084181,0.00019078,2]
[314937751,1708689037834,-2349.24830593,0.000181,2]
[314937753,1708689037846,-7309.88063917,0.000181,2]
[314937755,1708689037857,-182.953358,0.000181,2]
[314937757,1708689037866,-171.81943161,0.0001889,2]
[314937759,1708689037875,-401.97176431,0.000189,2]
[314937761,1708689037884,-36090.66618983,0.00018978,2]
[314937763,1708689037893,-8227.31028119,0.00019077,2]
[314937765,1708689037902,-181721.83370626,0.00019078,2]
[314937767,1708689037911,-620.95806172,0.00019168,2]
[314937769,1708689037920,-43739.37952295,0.00019178,2]
[314937771,1708689037929,-500.0,0.00019178,2]
[314937773,1708689037938,-350.79093063,0.00019178,2]
[314937775,1708689037946,-731.28674143,0.00019178,2]
[314937777,1708689037955,-500.0,0.00019178,2]
[314937779,1708689037964,-731.28674143,0.00019178,2]
[314937780,1708689037973,-500.0,0.00019178,2]
[314937782,1708689037982,-500.0,0.00019178,2]
[314937784,1708689037991,-731.28674143,0.00019178,2]
[314937786,1708689038000,-500.0,0.00019178,2]
[314937788,1708689038009,-500.0,0.00019178,2]
[314937790,1708689038018,-731.28674143,0.00019178,2]
[314937792,1708689038027,-500.0,0.00019178,2]
[314937794,1708689038036,-731.28674143,0.00019178,2]
[314937796,1708689038045,-731.28674143,0.00019178,2]
[314937798,1708689038054,-500.0,0.00019178,2]
[314937800,1708689038064,-731.28674143,0.00019178,2]
[314937802,1708689038073,-500.0,0.00019178,2]
[314937804,1708689038082,-731.28674143,0.00019178,2]
[314937806,1708689038091,-731.28674143,0.00019178,2]
[314937808,1708689038101,-500.0,0.00019178,2]
[314937810,1708689038110,-731.28674143,0.00019178,2]
[314937812,1708689038119,-731.28674143,0.00019178,2]
[314937814,1708689038128,-500.0,0.00019178,2]
[314937816,1708689038137,-731.28674143,0.00019178,2]
[314937818,1708689038147,-731.28674143,0.00019178,2]
[314937820,1708689038156,-500.0,0.00019178,2]
[314937822,1708689038165,-731.28674143,0.00019178,2]
[314937824,1708689038174,-186.29117851,0.00019178,2]
[314937826,1708689038183,-731.28674143,0.00019178,2]
[314937828,1708689038192,-731.28674143,0.00019178,2]
[314937830,1708689038201,-500.0,0.00019178,2]
[314937832,1708689038210,-731.28674143,0.00019178,2]
[314937834,1708689038219,-731.28674143,0.00019178,2]
[314937836,1708689038228,-731.28674143,0.00019178,2]
[314937837,1708689038238,-731.28674143,0.00019178,2]
[314937839,1708689038247,-731.28674143,0.00019178,2]
[314937841,1708689038256,-731.28674143,0.00019178,2]
[314937843,1708689038266,-731.28674143,0.00019178,2]
[314937845,1708689038275,-731.28674143,0.00019178,2]
[314937847,1708689038285,-731.28674143,0.00019178,2]
[314937849,1708689038293,-731.28674143,0.00019178,2]
[314937851,1708689038303,-731.28674143,0.00019178,2]
[314937853,1708689038312,-731.28674143,0.00019178,2]
[314937855,1708689038321,-731.28674143,0.00019178,2]
[314937857,1708689038330,-731.28674143,0.00019178,2]
[314937859,1708689038339,-731.28674143,0.00019178,2]
[314937861,1708689038349,-731.28674143,0.00019178,2]
[314937863,1708689038358,-731.28674143,0.00019178,2]
[314937865,1708689038366,-731.28674143,0.00019178,2]
[314937867,1708689038375,-731.28674143,0.00019178,2]
[314937869,1708689038384,-731.28674143,0.00019178,2]
[314937871,1708689038393,-731.28674143,0.00019178,2]
[314937873,1708689038402,-731.28674143,0.00019178,2]
[314937875,1708689038412,-731.28674143,0.00019178,2]
[314937877,1708689038421,-731.28674143,0.00019178,2]
[314937879,1708689038430,-731.28674143,0.00019178,2]